{"text_format":"1","workbook":"xlsx","n_sheets":6,"sheets":["1. Institutions of Deposit","2. Description","3.Individual_Family_Institution","4. Technical Details-Images","Controlled Lists","Statistics"],"not_rendered":{"charts":0,"images":1,"macros":1,"external_links":0,"defined_names":8,"comments":0,"pivot_tables":0},"unopened":[],"bounds":{"document_bytes":16777216,"sheet_cells":100000,"rows_first":2000,"rows_last":500,"rows_between":2000,"halvings":0,"cell_chars":16384,"cell_head_chars":4096},"cells_cut":0,"cells_raw":0,"read":"whole","date_system":"1900"}

{"sheet":"1. Institutions of Deposit","index":0,"n_rows":2,"n_cols":3,"rows_kept":2,"cut":false,"hidden":false,"merged":[[0,0,0,2],[0,3,1048575,255]]}
["Institution(s) of Deposit \n(complete for each institution or owner that holds the original material or will be receiving copies of the material)."]
["Name of Institution\n(full official title)","Contact Address \n(address of the institution or to where postal enquiries may be sent)","Official Website (if applicable)"]

{"sheet":"2. Description","index":1,"n_rows":4,"n_cols":46,"rows_kept":4,"cut":false,"hidden":false,"merged":[[0,0,0,1],[0,2,0,4],[0,26,0,28],[0,39,0,44],[0,29,0,31],[0,32,0,36],[0,37,0,38],[0,16,0,18],[0,11,0,15],[0,5,0,10],[0,19,0,25]]}
["Identification",null,"Titles",null,null,"Scope and Content",null,null,null,null,null,"Authority Terms",null,null,null,null,"Dates",null,null,"Provenance",null,null,null,null,null,null,"Languages",null,null,"Access conditions",null,null,"Copyright Information",null,null,null,null,"Data Protection",null,"Digital Copies"]
["Level","Original Reference","Title (In English)","Title (In Original Language/Script)","Title (Transliterated)\n","Content Type","Description","Description (in alternative language)","Number and Type of Original Material","Size and Dimensions of Original Material","Condition of Original Material","Related Countries              ","Related Towns/Cities","Related Religions/Belief Systems","Related Subjects\n","Other Related Subjects\n","Dates of Original Material (Gregorian Calendar)","Alternative Calendar","Alternative Calendar Dates","System of Arrangement","Custodial History","Author(s) / Creators of the Original Material","Scribe(s) of the Original Material","Publisher(s) of the Original Material","Editor(s) of the Original Material","Volume and Issue Number","Languages of Material","Scripts of Material\n","Writing System \n","Access Conditions","Restriction End Date","Reason for Restriction","Is the Material Still in Copyright?","Copyright Holder's Name","Have you obtained written consent for the Material to be included on the EAP website?","Have You Sent All Written Permissions to the EAP Office?","Attribution","Does the Material Contain Sensitive Personal Data About Living People?","The Nature of Sensitive Personal Data","Digital Folder Name","Digital File Name","Creation Date of Digital Files","Format of Digital Files","Number of Digital Files","Location of Digital Copies","Location of Original Material "]
["Select an option from the dropdown list","Shelfmark or Accession number at original Institution of Deposit",null,"Please enter the titles in the original font, if it has Unicode characters. http://unicode.org/charts/","Please use the Library of Congress 'Romanisation Tables' for transliterations - https://www.loc.gov/catdir/cpso/roman.html","Select an option from the dropdown list. If you cannot find an appropriate option, please contact EAP"," A complete statement describing the subject matter and context of the material","This should be an exact translation of the previous column","For example: 1 photograph album containing 25 photographs; 1 volume containing 50 folios; 23 maps; 2 parchment folios; 1 glass plate negative; 1 palm lead manuscript; 3 accordian paper books","Please use centimetres (cm). For example: Height 10cm, width 5cm, depth 1cm","For example: The red ink is fading, and the the top right corner is torn","  To include multiple countries, separate them by a semi-colon. For example: France; Germany; Italy","To include multiple towns, separate them by a semi-colon. For example: Paris; Rome; Berlin. Please use the Getty Thesaurus of Geographic Names for reference - http://www.getty.edu/research/tools/vocabularies/tgn/","Select as many options terms from the dropdown list as applicable","Select as many keywords terms from the dropdown list as applicable. If you wish to add a subject term not on this list, please write it in the next column",null,"If undated, please provide an approximate date range. Example formats: 22 Sep 1910; Sep 1910; 1910; Early 20th century, 1st half of the 20th century","If applicable, select an option from the dropdown list",null,"Describe how the collection is/has been organised and arranged. Include reference to who was responsible for the arrangement. Please include mention of whether the material has been ordered according to any classification scheme","Describe the provenance/history of the ownership of the material","Please also provide contextual information, where known","Please also provide contextual information, where known  ","Please also provide contextual information, where known. Including, for example, the place of publication","Please also provide contextual information, where known",null,"Select as many languages from the dropdown list as applicable. If you cannot find a required language, please contact the EAP team","Select as many scripts from the dropdown list as applicable. If you cannot find a required script, please contact the EAP team","Select from the dropdown list. Is the material written left-to-right (e.g. English, French) or right-to-left, (e.g. Arabic, Chinese)?","Select an option from the dropdown list. All material being sent to EAP should be 'Unrestricted'. Please inform the EAP Curator of any access issues","When will the material become unrestricted?",null,"Select from the dropdown list",null,"Select from the dropdown list","Select from the dropdown list","Please put the exact wording of how the copyright holder would like to be credited","If yes, please specify in the next column","Please explain why this material should be restricted","This needs to be exactly the same as it appears on the hard drive(s)","This needs to be exactly the same as it appears on the hard drive(s). File names must end in sequential numbers. We recommend ending filenames using 4 digits. For example: EAP000_Example_0001","Select an option from the dropdown list","Select an option from the dropdown list",null,"The names of institutions other than the British Library that will hold a digital copy of the images. ","Please provide the repository name, rather than the full address. For example: The Louvre, Paris, France"]
["Mandatory","Mandatory if known/applicable","Mandatory","Mandatory if applicable","Mandatory if the original title is not in Latin script","Mandatory at File and Item levels","Mandatory at Collection level (But preferable at all levels)","Optional","Mandatory","Optional","Optional","Mandatory","Mandatory if known/applicable","Mandatory if known/applicable","Mandatory","Optional","Mandatory","Optional","Optional","Mandatory at Collection level","Mandatory at Collection level","Mandatory if known/applicable","Mandatory if known/applicable","Mandatory if known/applicable","Mandatory if known/applicable","Mandatory if known/applicable","Mandatory","Mandatory","Mandatory","Mandatory","Mandatory if you answered \"Temporarily Restricted\" in column AD","Mandatory if you answered \"Temporarily Restricted\" in column AD","Mandatory","Mandatory if you answered \"Yes\" in column AG","Mandatory if you answered \"Yes\" in column AG","Mandatory if you answered \"Yes\" in column AG","Mandatory if you answered \"Yes\" in column AG","Mandatory","Mandatory if you answered \"Yes\" in column AL","Mandatory","Mandatory at File and Item levels","Mandatory","Mandatory","Mandatory","Mandatory at Collection level","Mandatory"]

{"sheet":"3.Individual_Family_Institution","index":2,"n_rows":2,"n_cols":10,"rows_kept":2,"cut":false,"hidden":false,"merged":[[0,0,0,9],[0,10,1048575,255]]}
["Describing the relationship between archives/manuscripts with people and places"]
["Institution Name\n(Include the institution where the material is housed, the institution that created the material etc.)","Family Name\n(Name by which a family or other social group is known, the surname of an individual.  To be used when describing either a family or an individual)","First Name\n(The first or given name of an individual)","Additions/Qualifiers \n(Other names or titles associated with an individual, family or institution. This can include religious titles, official titles, aristocratic titles and pseudonyms)","Gender\n(Male or Female)","Date(s) \n(The date range a person or institution existed.  For example: 1910-1999; b 1955; d 1617)","History / Biographical Information\n(Descriptive statement of the biographical or administrative history of the individual, family or institution) ","Relationship to material being copied\n(The role of the individual,family or institution. For example: creator, publisher author, owner)","Places\n(The place names of locations where the individual, family or institution is located/live or have lived).","Sources\n(Where did you get the information about the person / family / institution described?)"]

{"sheet":"4. Technical Details-Images","index":3,"n_rows":2,"n_cols":9,"rows_kept":2,"cut":false,"hidden":false,"merged":[[0,0,0,8],[0,9,1048575,254]]}
[]
["Creator\n(The name of the person who photographed/scanned the material)","Place\n(The geographical location where the digital images were taken)","Dates\n(The date range of when the images were taken. Examples: 22 Nov 2012, Nov-Dec 2012)","Image File Format\n(For example: TIFF)","Capture Device\n(The make and model of camera or scanner)","Capture Details\n(software used to create the image, including the version number)","Colour\n(indicate pixel depth. i.e. RGB 24-bit)","Resolution\n(For example 300ppi)","Checksum software Used \n(The name of the software, including the version number)"]

{"sheet":"Controlled Lists","index":4,"n_rows":619,"n_cols":13,"rows_kept":619,"cut":false,"hidden":false,"merged":[]}
["Scripts","Code",null,"Languages","Code",null,"ContentTypes",null,"Calendars",null,"SubjectTerms",null,"Religions"]
["Adlam",null,null,"Abkhazian",null,null,"Appendix",null,"French Republican",null,"Accounting and Finance",null,"Animism"]
["Afaka",null,null,"Abor",null,null,"Archival File",null,"Hebrew",null,"Administration",null,"Atheism"]
["Ahom, Tai Ahom",null,null,"Achinese",null,null,"Archival item",null,"Hurban",null,"Agriculture",null,"Buddhism"]
["Anatolian Hieroglyphs (Luwian Hieroglyphs, Hittite Hieroglyphs)",null,null,"Acoli",null,null,"Artefact",null,"Islamic",null,"Animals",null,"Candomblé"]
["Arabic",null,null,"Adangme",null,null,"Audio",null,"Japanese",null,"Anthropology",null,"Christianity"]
["Arabic (Nastaliq variant)",null,null,"Adygei",null,null,"Book",null,"Julian",null,"Archaeology",null,"Eastern Orthodox"]
["Armenian",null,null,"Adyghe",null,null,"Booklet",null,"Persian",null,"Architecture",null,"Hinduism"]
["Avestan",null,null,"Afar",null,null,"Certificate",null,"Rattanakosin",null,"Art",null,"Islam"]
["Balinese",null,null,"Afrihili",null,null,"Correspondence",null,"Seleucid",null,"Astrology",null,"Jainism"]
["Bamum",null,null,"Afrikaans",null,null,"Court/Legal Records",null,"Suriyakati",null,"Astronomy",null,"Judaism"]
["Bassa Vah",null,null,"Afro-Asiatic languages",null,null,"Diagram",null,"Vikrama",null,"Birth",null,"Old Believers"]
["Batak",null,null,"Ainu",null,null,"Diary",null,null,null,"Building construction",null,"Paganism"]
["Bengali (Bangla)",null,null,"Akan",null,null,"Document",null,null,null,"Business",null,"Rastafari"]
["Bhaiksuki",null,null,"Akkadian",null,null,"Drawing",null,null,null,"Castes and Tribes",null,"Santeria"]
["Blissymbols",null,null,"Albanian",null,null,"Illustration",null,null,null,"Charity",null,"Shinto"]
["Book Pahlavi",null,null,"Alemannic",null,null,"Index",null,null,null,"Children",null,"Sikhism"]
["Bopomofo",null,null,"Aleut",null,null,"Journal",null,null,null,"Cinema and Television",null,"Sufism"]
["Brahmi",null,null,"Algonquian languages",null,null,"Journal article",null,null,null,"Colonialism",null,"Taoism"]
["Braille",null,null,"Alsatian",null,null,"Letter",null,null,null,"Commentaries",null,"Zoroastrianism"]
["Buginese",null,null,"Altaic languages",null,null,"Letterbook",null,null,null,"Conflicts"]
["Buhid",null,null,"Amharic",null,null,"List",null,null,null,"Crime"]
["Carian",null,null,"Angika",null,null,"Manuscript",null,null,null,"Customs and traditions"]
["Caucasian Albanian",null,null,"Ao",null,null,"Manuscript item",null,null,null,"Dance"]
["Chakma",null,null,"Apache languages",null,null,"Map",null,null,null,"Death"]
["Cham",null,null,"Arabic",null,null,"Minute book",null,null,null,"Demography"]
["Cherokee",null,null,"Aragonese",null,null,"Newsletter",null,null,null,"Diaspora"]
["Cirth",null,null,"Arakanese",null,null,"Newspaper",null,null,null,"Didacticisms"]
["Coptic",null,null,"Aramaic",null,null,"Newspaper article",null,null,null,"Diplomacy"]
["Cuneiform, Sumero-Akkadian",null,null,"Arapaho",null,null,"Newspaper clipping",null,null,null,"Education"]
["Cypriot syllabary",null,null,"Arawak",null,null,"Note",null,null,null,"Engineering"]
["Cypro-Minoan",null,null,"Armenian",null,null,"Notebook",null,null,null,"Epic poetry"]
["Cyrillic",null,null,"Aromanian",null,null,"Painting",null,null,null,"Eroticism"]
["Cyrillic (Old Church Slavonic variant)",null,null,"Artificial languages",null,null,"Pamphlet",null,null,null,"Ethics"]
["Deseret (Mormon)",null,null,"Arumanian",null,null,"Passport",null,null,null,"Ethnic groups"]
["Devanagari (Nagari)",null,null,"Assamese",null,null,"Periodical",null,null,null,"First World War (1914-1918)"]
["Dogra",null,null,"Asturian",null,null,"Photograph",null,null,null,"Folklore"]
["Duployan shorthand, Duployan stenography",null,null,"Asturleonese",null,null,"Plan",null,null,null,"Food and Drink"]
["Egyptian demotic",null,null,"Athapascan languages",null,null,"Postcard",null,null,null,"Forestry"]
["Egyptian hieratic",null,null,"Australian languages",null,null,"Print",null,null,null,"Genealogy"]
["Egyptian hieroglyphs",null,null,"Austronesian languages",null,null,"Register",null,null,null,"Geology"]
["Elbasan",null,null,"Avaric",null,null,"Report",null,null,null,"Government"]
["Ethiopic (Geʻez)",null,null,"Avestan",null,null,"Score",null,null,null,"Health and Medicine"]
["Georgian (Mkhedruli and Mtavruli)",null,null,"Awadhi",null,null,"Statistical table",null,null,null,"History"]
["Glagolitic",null,null,"Aymara",null,null,"Table of Contents",null,null,null,"Hunting and Fishing"]
["Gothic",null,null,"Azerbaijani",null,null,"Thesis",null,null,null,"Indigenous populations"]
["Grantha",null,null,"Bable",null,null,"Title page",null,null,null,"Land use"]
["Greek",null,null,"Balinese",null,null,"Treaty",null,null,null,"Landscapes"]
["Gujarati",null,null,"Baltic languages",null,null,"Video",null,null,null,"Languages and Grammar"]
["Gunjala Gondi",null,null,"Baluchi",null,null,"Volume",null,null,null,"Law and Legal affairs"]
["Gurmukhi",null,null,"Bambara",null,null,{"$f":"SUBTOTAL(103,Table1[ContentTypes])","v":49},null,null,null,"LGBT"]
["Han (Hanzi, Kanji, Hanja)",null,null,"Bamileke languages",null,null,null,null,null,null,"Literature"]
["Han (Simplified variant)",null,null,"Bamun",null,null,null,null,null,null,"Manual work"]
["Han (Traditional variant)",null,null,"Banda languages",null,null,null,null,null,null,"Marriage"]
["Han with Bopomofo (alias for Han + Bopomofo)",null,null,"Bantu languages",null,null,null,null,null,null,"Material culture"]
["Hangul (Hangŭl, Hangeul)",null,null,"Basa",null,null,null,null,null,null,"Mathematics"]
["Hanifi Rohingya",null,null,"Bashkir",null,null,null,null,null,null,"Migration"]
["Hanunoo (Hanunóo)",null,null,"Basque",null,null,null,null,null,null,"Military"]
["Hatran",null,null,"Batak languages",null,null,null,null,null,null,"Missionary work"]
["Hebrew",null,null,"Bedawiyet",null,null,null,null,null,null,"Monuments and Memorials"]
["Hiragana",null,null,"Beja",null,null,null,null,null,null,"Music"]
["Imperial Aramaic",null,null,"Belarusian",null,null,null,null,null,null,"Mysticism"]
["Indus (Harappan)",null,null,"Bemba",null,null,null,null,null,null,"Nationalism"]
["Inscriptional Pahlavi",null,null,"Bengali",null,null,null,null,null,null,"Parish Records"]
["Inscriptional Parthian",null,null,"Berber languages",null,null,null,null,null,null,"Philosophy"]
["Jamo (alias for Jamo subset of Hangul)",null,null,"Bhili",null,null,null,null,null,null,"Plants"]
["Japanese (alias for Han + Hiragana + Katakana)",null,null,"Bhojpuri",null,null,null,null,null,null,"Poetry"]
["Japanese syllabaries (alias for Hiragana + Katakana)",null,null,"Bhotia",null,null,null,null,null,null,"Politics"]
["Javanese",null,null,"Bihari languages",null,null,null,null,null,null,"Portraits"]
["Jurchen",null,null,"Bikol",null,null,null,null,null,null,"Pottery and Ceramics"]
["Kaithi",null,null,"Bilin",null,null,null,null,null,null,"Propaganda "]
["Kannada",null,null,"Bini",null,null,null,null,null,null,"Psychiatry"]
["Katakana",null,null,"Bislama",null,null,null,null,null,null,"Publishing"]
["Kayah Li",null,null,"Blin",null,null,null,null,null,null,"Rites and ceremonies"]
["Kharoshthi",null,null,"Bliss",null,null,null,null,null,null,"Royalty and rulers"]
["Khitan large script",null,null,"Blissymbolics",null,null,null,null,null,null,"Science"]
["Khitan small script",null,null,"Blissymbols",null,null,null,null,null,null,"Second World War (1939-1945)"]
["Khmer",null,null,"Bokmål, Norwegian",null,null,null,null,null,null,"Slavery"]
["Khojki",null,null,"Bosnian",null,null,null,null,null,null,"Social Welfare"]
["Khudawadi, Sindhi",null,null,"Brahui",null,null,null,null,null,null,"Sport and Leisure"]
["Khutsuri (Asomtavruli and Nuskhuri)",null,null,"Braj",null,null,null,null,null,null,"Theatre"]
["Klingon (KLI pIqaD)",null,null,"Breton",null,null,null,null,null,null,"Theology"]
["Korean (alias for Hangul + Han)",null,null,"Buginese",null,null,null,null,null,null,"Trade and Industry"]
["Kpelle",null,null,"Bulgarian",null,null,null,null,null,null,"Trade unions"]
["Lao",null,null,"Buriat",null,null,null,null,null,null,"Transport"]
["Latin",null,null,"Burmese",null,null,null,null,null,null,"Travel"]
["Latin (Fraktur variant)",null,null,"Caddo",null,null,null,null,null,null,"Utilities"]
["Latin (Gaelic variant)",null,null,"Castilian",null,null,null,null,null,null,"Weapons"]
["Leke",null,null,"Catalan",null,null,null,null,null,null,"Weather"]
["Lepcha (Róng)",null,null,"Caucasian languages",null,null,null,null,null,null,"Women"]
["Limbu",null,null,"Cebuano",null,null,null,null,null,null,{"$f":"SUBTOTAL(103,Table5[SubjectTerms])","v":89}]
["Linear A",null,null,"Celtic languages"]
["Linear B",null,null,"Central American Indian languages"]
["Lisu (Fraser)",null,null,"Central Khmer"]
["Loma",null,null,"Central Pahari"]
["Lycian",null,null,"Chagatai"]
["Lydian",null,null,"Chamic languages"]
["Mahajani",null,null,"Chamorro"]
["Makasar",null,null,"Chechen"]
["Malayalam",null,null,"Cherokee"]
["Manchu",null,null,"Chewa"]
["Mandaic, Mandaean",null,null,"Cheyenne"]
["Manichaean",null,null,"Chibcha"]
["Marchen",null,null,"Chichewa"]
["Masaram Gondi",null,null,"Chinese"]
["Mathematical notation",null,null,"Chinook jargon"]
["Mayan hieroglyphs",null,null,"Chipewyan"]
["Medefaidrin (Oberi Okaime, Oberi Ɔkaimɛ)",null,null,"Choctaw"]
["Meitei Mayek (Meithei, Meetei)",null,null,"Chuang"]
["Mende Kikakui",null,null,"Church Slavic"]
["Meroitic Cursive",null,null,"Church Slavonic"]
["Meroitic Hieroglyphs",null,null,"Chuukese"]
["Miao (Pollard)",null,null,"Chuvash"]
["Modi, Moḍī",null,null,"Classical Nepal Bhasa"]
["Mongolian",null,null,"Classical Newari"]
["Moon (Moon code, Moon script, Moon type)",null,null,"Classical Syriac"]
["Mro, Mru",null,null,"Coast Miwok"]
["Multani",null,null,"Cook Islands Maori"]
["Myanmar (Burmese)",null,null,"Coptic"]
["N’Ko",null,null,"Cornish"]
["Nabataean",null,null,"Corsican"]
["Naxi Dongba (na²¹ɕi³³ to³³ba²¹, Nakhi Tomba)",null,null,"Cree"]
["Naxi Geba (na²¹ɕi³³ gʌ²¹ba²¹, 'Na-'Khi ²Ggŏ-¹baw, Nakhi Geba)",null,null,"Creek"]
["New Tai Lue",null,null,"Creoles and pidgins"]
["Newa, Newar, Newari, Nepāla lipi",null,null,"Creoles and pidgins, English based"]
["Not applicable",null,null,"Creoles and pidgins, French-based"]
["Nüshu",null,null,"Creoles and pidgins, Portuguese-based"]
["Nyiakeng Puachue Hmong",null,null,"Crimean Tatar"]
["Ogham",null,null,"Crimean Turkish"]
["Ol Chiki (Ol Cemet’, Ol, Santali)",null,null,"Croatian"]
["Old Hungarian (Hungarian Runic)",null,null,"Cushitic languages"]
["Old Italic (Etruscan, Oscan, etc.)",null,null,"Czech"]
["Old North Arabian (Ancient North Arabian)",null,null,"Dakota"]
["Old Permic",null,null,"Danaw"]
["Old Persian",null,null,"Danish"]
["Old Sogdian",null,null,"Dargwa"]
["Old South Arabian",null,null,"Delaware"]
["Old Turkic, Orkhon Runic",null,null,"Dene Suline"]
["Oriya (Odia)",null,null,"Dhivehi"]
["Osage",null,null,"Dhundari"]
["Osmanya",null,null,"Dimasa"]
["Pahawh Hmong",null,null,"Dimili"]
["Palmyrene",null,null,"Dimli"]
["Pau Cin Hau",null,null,"Dinka"]
["Phags-pa",null,null,"Divehi"]
["Phoenician",null,null,"Dogri"]
["Prachalit Nepal",null,null,"Dogrib"]
["Psalter Pahlavi",null,null,"Dravidian languages"]
["Rejang (Redjang, Kaganga)",null,null,"Duala"]
["Reserved for private use (end)",null,null,"Dutch"]
["Reserved for private use (start)",null,null,"Dutch, Middle (ca.1050-1350)"]
["Rongorongo",null,null,"Dyula"]
["Runic",null,null,"Dzongkha"]
["Samaritan",null,null,"Eastern Cham"]
["Sarati",null,null,"Eastern Frisian"]
["Saurashtra",null,null,"Eastern Pahari"]
["Sharada, Śāradā",null,null,"Edo"]
["Shavian (Shaw)",null,null,"Efik"]
["Shuishu",null,null,"Egyptian (Ancient)"]
["Siddham, Siddhaṃ, Siddhamātṛkā",null,null,"Ekajuk"]
["SignWriting",null,null,"Elamite"]
["Sinhala",null,null,"English"]
["Sogdian",null,null,"English, Middle (1100-1500)"]
["Sora Sompeng",null,null,"English, Old (ca.450-1100)"]
["Soyombo",null,null,"Erzya"]
["Sundanese",null,null,"Esperanto"]
["Syloti Nagri",null,null,"Estonian"]
["Symbols",null,null,"Ewe"]
["Symbols (Emoji variant)",null,null,"Ewondo"]
["Syriac",null,null,"Fang"]
["Syriac (Eastern variant)",null,null,"Fanti"]
["Syriac (Estrangelo variant)",null,null,"Faroese"]
["Syriac (Western variant)",null,null,"Fijian"]
["Tagalog (Baybayin, Alibata)",null,null,"Filipino"]
["Tagbanwa",null,null,"Finnish"]
["Tai Le",null,null,"Finno-Ugrian languages"]
["Tai Tham (Lanna)",null,null,"Flemish"]
["Tai Viet",null,null,"Fon"]
["Takri, Ṭākrī, Ṭāṅkrī",null,null,"French"]
["Tamil",null,null,"French, Middle (ca.1400-1600)"]
["Tangut",null,null,"French, Old (842-ca.1400)"]
["Telugu",null,null,"Friulian"]
["Tengwar",null,null,"Fulah"]
["Thaana",null,null,"Fulfulde"]
["Thai",null,null,"Ga"]
["Tibetan",null,null,"Gadaba"]
["Tifinagh (Berber)",null,null,"Gaelic"]
["Tirhuta",null,null,"Galibi Carib"]
["Ugaritic",null,null,"Galician"]
["Undetermined",null,null,"Ganda"]
["Unified Canadian Aboriginal Syllabics",null,null,"Garo"]
["Vai",null,null,"Gayo"]
["Visible Speech",null,null,"Gbaya"]
["Wancho",null,null,"Geez"]
["Warang Citi (Varang Kshiti)",null,null,"Georgian"]
["Woleai",null,null,"German"]
["Yi",null,null,"German, Low"]
[null,null,null,"German, Middle High (ca.1050-1500)"]
[null,null,null,"German, Old High (ca.750-1050)"]
[null,null,null,"Germanic languages"]
[null,null,null,"Gikuyu"]
[null,null,null,"Gilbertese"]
[null,null,null,"Gondi"]
[null,null,null,"Gorontalo"]
[null,null,null,"Gothic"]
[null,null,null,"Grebo"]
[null,null,null,"Greek, Ancient (to 1453)"]
[null,null,null,"Greek, Modern (1453-)"]
[null,null,null,"Greenlandic"]
[null,null,null,"Guarani"]
[null,null,null,"Gujarati"]
[null,null,null,"Gurung"]
[null,null,null,"Gwich'in"]
[null,null,null,"Haida"]
[null,null,null,"Haitian"]
[null,null,null,"Haitian Creole"]
[null,null,null,"Hakha Chin"]
[null,null,null,"Harari"]
[null,null,null,"Hausa"]
[null,null,null,"Hawaiian"]
[null,null,null,"Hebrew"]
[null,null,null,"Herero"]
[null,null,null,"Hiligaynon"]
[null,null,null,"Himachali languages"]
[null,null,null,"Hindi"]
[null,null,null,"Hindustani"]
[null,null,null,"Hiri Motu"]
[null,null,null,"Hittite"]
[null,null,null,"Hmong"]
[null,null,null,"Hungarian"]
[null,null,null,"Hupa"]
[null,null,null,"Iban"]
[null,null,null,"Icelandic"]
[null,null,null,"Ido"]
[null,null,null,"Igbo"]
[null,null,null,"Ijo languages"]
[null,null,null,"Iloko"]
[null,null,null,"Imperial Aramaic (700-300 BCE)"]
[null,null,null,"Inari Sami"]
[null,null,null,"Indic languages"]
[null,null,null,"Indo-European languages"]
[null,null,null,"Indonesian"]
[null,null,null,"Ingush"]
[null,null,null,"Interlingua (International Auxiliary Language Association)"]
[null,null,null,"Interlingue"]
[null,null,null,"Inuktitut"]
[null,null,null,"Inupiaq"]
[null,null,null,"Iranian languages"]
[null,null,null,"Irish"]
[null,null,null,"Irish, Middle (900-1200)"]
[null,null,null,"Irish, Old (to 900)"]
[null,null,null,"Iroquoian languages"]
[null,null,null,"Italian"]
[null,null,null,"Japanese"]
[null,null,null,"Javanese"]
[null,null,null,"Jingpho"]
[null,null,null,"Judeo-Arabic"]
[null,null,null,"Judeo-Persian"]
[null,null,null,"Kabardian"]
[null,null,null,"Kabyle"]
[null,null,null,"Kachin"]
[null,null,null,"Kalaallisut"]
[null,null,null,"Kalmyk"]
[null,null,null,"Kamba"]
[null,null,null,"Kannada"]
[null,null,null,"Kanuri"]
[null,null,null,"Kapampangan"]
[null,null,null,"Karachay-Balkar"]
[null,null,null,"Kara-Kalpak"]
[null,null,null,"Karelian"]
[null,null,null,"Karen languages"]
[null,null,null,"Kashmiri"]
[null,null,null,"Kashubian"]
[null,null,null,"Kawi"]
[null,null,null,"Kazakh"]
[null,null,null,"Kerinchi"]
[null,null,null,"Khandesi"]
[null,null,null,"Kharia"]
[null,null,null,"Khasi"]
[null,null,null,"Kherwari"]
[null,null,null,"Khoisan languages"]
[null,null,null,"Khotanese"]
[null,null,null,"Khun"]
[null,null,null,"Kikuyu"]
[null,null,null,"Kimbundu"]
[null,null,null,"Kinyarwanda"]
[null,null,null,"Kirdki"]
[null,null,null,"Kirghiz"]
[null,null,null,"Kirmanjki"]
[null,null,null,"Klingon"]
[null,null,null,"Kodava"]
[null,null,null,"Kolami"]
[null,null,null,"Komi"]
[null,null,null,"Kongo"]
[null,null,null,"Konkani"]
[null,null,null,"Korean"]
[null,null,null,"Kosraean"]
[null,null,null,"Kota"]
[null,null,null,"Kpelle"]
[null,null,null,"Kru languages"]
[null,null,null,"Kuanyama"]
[null,null,null,"Kui"]
[null,null,null,"Kumyk"]
[null,null,null,"Kurdish"]
[null,null,null,"Kurukh"]
[null,null,null,"Kutenai"]
[null,null,null,"Kwanyama"]
[null,null,null,"Kyrgyz"]
[null,null,null,"Ladino"]
[null,null,null,"Lahnda"]
[null,null,null,"Lamba"]
[null,null,null,"Lampung"]
[null,null,null,"Land Dayak languages"]
[null,null,null,"Lao"]
[null,null,null,"Latin"]
[null,null,null,"Latvian"]
[null,null,null,"Leonese"]
[null,null,null,"Lepcha"]
[null,null,null,"Letzeburgesch"]
[null,null,null,"Lezghian"]
[null,null,null,"Ligurian"]
[null,null,null,"Limburgan"]
[null,null,null,"Limburger"]
[null,null,null,"Limburgish"]
[null,null,null,"Lingala"]
[null,null,null,"Lisu"]
[null,null,null,"Lithuanian"]
[null,null,null,"Lojban"]
[null,null,null,"Low German"]
[null,null,null,"Low Saxon"]
[null,null,null,"Lower Sorbian"]
[null,null,null,"Lozi"]
[null,null,null,"Luba-Katanga"]
[null,null,null,"Luba-Lulua"]
[null,null,null,"Luiseno"]
[null,null,null,"Lule Sami"]
[null,null,null,"Lunda"]
[null,null,null,"Luo (Kenya and Tanzania)"]
[null,null,null,"Lushai"]
[null,null,null,"Luxembourgish"]
[null,null,null,"Macedonian"]
[null,null,null,"Macedo-Romanian"]
[null,null,null,"Madurese"]
[null,null,null,"Magahi"]
[null,null,null,"Magar"]
[null,null,null,"Maguindanao"]
[null,null,null,"Maithili"]
[null,null,null,"Makasar"]
[null,null,null,"Malagasy"]
[null,null,null,"Malay"]
[null,null,null,"Malayalam"]
[null,null,null,"Maldivian"]
[null,null,null,"Maltese"]
[null,null,null,"Manchu"]
[null,null,null,"Mandar"]
[null,null,null,"Mandingo"]
[null,null,null,"Manipuri"]
[null,null,null,"Manobo languages"]
[null,null,null,"Manx"]
[null,null,null,"Maori"]
[null,null,null,"Mapuche"]
[null,null,null,"Mapudungun"]
[null,null,null,"Mara"]
[null,null,null,"Marathi"]
[null,null,null,"Mari"]
[null,null,null,"Marshallese"]
[null,null,null,"Marwari"]
[null,null,null,"Masai"]
[null,null,null,"Mayan languages"]
[null,null,null,"Mende"]
[null,null,null,"Micmac"]
[null,null,null,"Mi'kmaq"]
[null,null,null,"Minangkabau"]
[null,null,null,"Mirandese"]
[null,null,null,"Mohawk"]
[null,null,null,"Moksha"]
[null,null,null,"Moldavian"]
[null,null,null,"Moldovan"]
[null,null,null,"Mon"]
[null,null,null,"Mong"]
[null,null,null,"Mongo"]
[null,null,null,"Mongolian"]
[null,null,null,"Mon-Khmer languages"]
[null,null,null,"Montenegrin"]
[null,null,null,"Mossi"]
[null,null,null,"Mru"]
[null,null,null,"Multiple languages"]
[null,null,null,"Munda languages"]
[null,null,null,"Nahuatl languages"]
[null,null,null,"Nauru"]
[null,null,null,"Navaho"]
[null,null,null,"Navajo"]
[null,null,null,"Ndebele, North"]
[null,null,null,"Ndebele, South"]
[null,null,null,"Ndonga"]
[null,null,null,"Neapolitan"]
[null,null,null,"Nepal Bhasa"]
[null,null,null,"Nepali"]
[null,null,null,"Newari"]
[null,null,null,"Ngoni"]
[null,null,null,"Nias"]
[null,null,null,"Niger-Kordofanian languages"]
[null,null,null,"Nilo-Saharan languages"]
[null,null,null,"Niuean"]
[null,null,null,"N'Ko"]
[null,null,null,"Nogai"]
[null,null,null,"Norse, Old"]
[null,null,null,"North American Indian languages"]
[null,null,null,"North Ndebele"]
[null,null,null,"Northern Frisian"]
[null,null,null,"Northern Sami"]
[null,null,null,"Northern Sotho"]
[null,null,null,"Norwegian"]
[null,null,null,"Norwegian Bokmål"]
[null,null,null,"Norwegian Nynorsk"]
[null,null,null,"Not applicable"]
[null,null,null,"Nubian languages"]
[null,null,null,"Nuosu"]
[null,null,null,"Nyamwezi"]
[null,null,null,"Nyanja"]
[null,null,null,"Nyankole"]
[null,null,null,"Nynorsk, Norwegian"]
[null,null,null,"Nyoro"]
[null,null,null,"Nzima"]
[null,null,null,"Occidental"]
[null,null,null,"Occitan (post 1500)"]
[null,null,null,"Occitan, Old (to 1500)"]
[null,null,null,"Official Aramaic (700-300 BCE)"]
[null,null,null,"Oirat"]
[null,null,null,"Ojibwa"]
[null,null,null,"Old Bulgarian"]
[null,null,null,"Old Church Slavonic"]
[null,null,null,"Old Mon"]
[null,null,null,"Old Newari"]
[null,null,null,"Old Slavonic"]
[null,null,null,"Oriya"]
[null,null,null,"Oromo"]
[null,null,null,"Osage"]
[null,null,null,"Ossetian"]
[null,null,null,"Ossetic"]
[null,null,null,"Otomian languages"]
[null,null,null,"Pahlavi"]
[null,null,null,"Palauan"]
[null,null,null,"Palaung"]
[null,null,null,"Pali"]
[null,null,null,"Pampanga"]
[null,null,null,"Pangasinan"]
[null,null,null,"Panjabi"]
[null,null,null,"Papiamento"]
[null,null,null,"Papuan languages"]
[null,null,null,"Pashto"]
[null,null,null,"Pedi"]
[null,null,null,"Persian"]
[null,null,null,"Persian, Old (ca.600-400 B.C.)"]
[null,null,null,"Philippine languages"]
[null,null,null,"Phoenician"]
[null,null,null,"Pilipino"]
[null,null,null,"Pohnpeian"]
[null,null,null,"Polish"]
[null,null,null,"Portuguese"]
[null,null,null,"Prakrit languages"]
[null,null,null,"Provençal, Old (to 1500)"]
[null,null,null,"Punjabi"]
[null,null,null,"Pushto"]
[null,null,null,"Quechua"]
[null,null,null,"Rajasthani"]
[null,null,null,"Rapanui"]
[null,null,null,"Rarotongan"]
[null,null,null,"Reserved for local use"]
[null,null,null,"Romance languages"]
[null,null,null,"Romanian"]
[null,null,null,"Romansh"]
[null,null,null,"Romany"]
[null,null,null,"Rundi"]
[null,null,null,"Russian"]
[null,null,null,"Sakan"]
[null,null,null,"Salishan languages"]
[null,null,null,"Samaritan Aramaic"]
[null,null,null,"Sami languages"]
[null,null,null,"Samoan"]
[null,null,null,"Sandawe"]
[null,null,null,"Sango"]
[null,null,null,"Sanskrit"]
[null,null,null,"Santali"]
[null,null,null,"Sardinian"]
[null,null,null,"Sasak"]
[null,null,null,"Saxon, Low"]
[null,null,null,"Scots"]
[null,null,null,"Scottish Gaelic"]
[null,null,null,"Selkup"]
[null,null,null,"Semitic languages"]
[null,null,null,"Sepedi"]
[null,null,null,"Serbian"]
[null,null,null,"Serer"]
[null,null,null,"Shan"]
[null,null,null,"Shona"]
[null,null,null,"Sichuan Yi"]
[null,null,null,"Sicilian"]
[null,null,null,"Sidamo"]
[null,null,null,"Sign Languages"]
[null,null,null,"Siksika"]
[null,null,null,"Sindhi"]
[null,null,null,"Sinhala"]
[null,null,null,"Sinhalese"]
[null,null,null,"Sino-Tibetan languages"]
[null,null,null,"Siouan languages"]
[null,null,null,"Skolt Sami"]
[null,null,null,"Slave (Athapascan)"]
[null,null,null,"Slavic languages"]
[null,null,null,"Slovak"]
[null,null,null,"Slovenian"]
[null,null,null,"Sogdian"]
[null,null,null,"Somali"]
[null,null,null,"Songhai languages"]
[null,null,null,"Soninke"]
[null,null,null,"Sorbian languages"]
[null,null,null,"Sotho, Northern"]
[null,null,null,"Sotho, Southern"]
[null,null,null,"South American Indian languages"]
[null,null,null,"South Ndebele"]
[null,null,null,"Southern Altai"]
[null,null,null,"Southern Sami"]
[null,null,null,"Spanish"]
[null,null,null,"Sranan Tongo"]
[null,null,null,"Standard Moroccan Tamazight"]
[null,null,null,"Sui"]
[null,null,null,"Sukuma"]
[null,null,null,"Sumerian"]
[null,null,null,"Sundanese"]
[null,null,null,"Susu"]
[null,null,null,"Swahili"]
[null,null,null,"Swati"]
[null,null,null,"Swedish"]
[null,null,null,"Swiss German"]
[null,null,null,"Syriac"]
[null,null,null,"Tagalog"]
[null,null,null,"Tahitian"]
[null,null,null,"Tai languages"]
[null,null,null,"Tajik"]
[null,null,null,"Talaing"]
[null,null,null,"Tamashek"]
[null,null,null,"Tamil"]
[null,null,null,"Tangkhul"]
[null,null,null,"Tangut"]
[null,null,null,"Tatar"]
[null,null,null,"Taungyo"]
[null,null,null,"Telugu"]
[null,null,null,"Tereno"]
[null,null,null,"Tetum"]
[null,null,null,"Thai"]
[null,null,null,"Tibetan"]
[null,null,null,"Tigre"]
[null,null,null,"Tigrinya"]
[null,null,null,"Timne"]
[null,null,null,"Tiv"]
[null,null,null,"tlhIngan-Hol"]
[null,null,null,"Tlingit"]
[null,null,null,"Toda"]
[null,null,null,"Tok Pisin"]
[null,null,null,"Tokelau"]
[null,null,null,"Tonga (Nyasa)"]
[null,null,null,"Tonga (Tonga Islands)"]
[null,null,null,"Tsimshian"]
[null,null,null,"Tsonga"]
[null,null,null,"Tswana"]
[null,null,null,"Tula"]
[null,null,null,"Tumbuka"]
[null,null,null,"Tupi languages"]
[null,null,null,"Turkish"]
[null,null,null,"Turkish, Ottoman (1500-1928)"]
[null,null,null,"Turkmen"]
[null,null,null,"Tuvalu"]
[null,null,null,"Tuvinian"]
[null,null,null,"Twi"]
[null,null,null,"Udmurt"]
[null,null,null,"Ugaritic"]
[null,null,null,"Uighur"]
[null,null,null,"Ukrainian"]
[null,null,null,"Umbundu"]
[null,null,null,"Uncoded languages"]
[null,null,null,"Undetermined"]
[null,null,null,"Upper Sorbian"]
[null,null,null,"Urdu"]
[null,null,null,"Uyghur"]
[null,null,null,"Uzbek"]
[null,null,null,"Vai"]
[null,null,null,"Valencian"]
[null,null,null,"Venda"]
[null,null,null,"Vietnamese"]
[null,null,null,"Volapük"]
[null,null,null,"Votic"]
[null,null,null,"Wakashan languages"]
[null,null,null,"Walloon"]
[null,null,null,"Waray"]
[null,null,null,"Washo"]
[null,null,null,"Welsh"]
[null,null,null,"Western Frisian"]
[null,null,null,"Western Pahari languages"]
[null,null,null,"Wolaitta"]
[null,null,null,"Wolaytta"]
[null,null,null,"Wolio"]
[null,null,null,"Wolof"]
[null,null,null,"Xhosa"]
[null,null,null,"Yakut"]
[null,null,null,"Yamana"]
[null,null,null,"Yao"]
[null,null,null,"Yapese"]
[null,null,null,"Yiddish"]
[null,null,null,"Yoruba"]
[null,null,null,"Yupik languages"]
[null,null,null,"Zande languages"]
[null,null,null,"Zapotec"]
[null,null,null,"Zaza"]
[null,null,null,"Zazaki"]
[null,null,null,"Zenaga"]
[null,null,null,"Zhuang"]
[null,null,null,"Zulu"]
[null,null,null,"Zuni"]
[null,null,null,{"$f":"SUBTOTAL(103,Table4[Languages])","v":617}]

{"sheet":"Statistics","index":5,"n_rows":47,"n_cols":7,"rows_kept":47,"cut":false,"hidden":true,"merged":[[11,5,11,6],[6,5,6,6],[17,5,17,6],[22,5,22,6],[28,5,28,6]]}
["Listing Heading","Cells containing data",null,null,null,"Number of Collections",{"$f":"COUNTIF('2. Description'!A:A,\"Collection\")","v":0}]
["Level",{"$f":"COUNTA('2. Description'!A5:A19998)","v":0},null,null,null,"Number of Series",{"$f":"COUNTIF('2. Description'!A:A,\"Series\")","v":0}]
["Original Reference",{"$f":"COUNTA('2. Description'!B5:B19998)","v":0},null,null,null,"Number Files",{"$f":"COUNTIF('2. Description'!A:A,\"File\")","v":0}]
["Title (In English)",{"$f":"COUNTA('2. Description'!C5:C19998)","v":0},null,null,null,"Number of Items",{"$f":"COUNTIF('2. Description'!A:A,\"Item\")","v":0}]
["Title (In Original Language/Script)",{"$f":"COUNTA('2. Description'!D5:D19998)","v":0},null,null,null,"Total number of levels",{"$f":"COUNTA('2. Description'!A5:A19998)","v":0}]
["Title (Transliterated)\n",{"$f":"COUNTA('2. Description'!E5:E19998)","v":0}]
["Content Type",{"$f":"COUNTA('2. Description'!F5:F19998)","v":0},null,null,null,"Access Conditions"]
["Description",{"$f":"COUNTA('2. Description'!G5:G19998)","v":0},null,null,null,"Unrestricted",{"$f":"COUNTIF('2. Description'!AD:AD,\"Unrestricted\")","v":0}]
["Description (in alternative language)",{"$f":"COUNTA('2. Description'!H5:H19998)","v":0},null,null,null,"Temporaily Restricted",{"$f":"COUNTIF('2. Description'!AD:AD,\"Temporarily Restricted (You must complete the next 2 columns)\")","v":0}]
["Number and Type of Original Material",{"$f":"COUNTA('2. Description'!I5:I19998)","v":0}]
["Size and Dimensions of Original Material",{"$f":"COUNTA('2. Description'!J5:J19998)","v":0}]
["Condition of Original Material",{"$f":"COUNTA('2. Description'!K5:K19998)","v":0},null,null,null,"In Copyright"]
["Related Countries              ",{"$f":"COUNTA('2. Description'!L5:L19998)","v":0},null,null,null,"Yes",{"$f":"COUNTIF('2. Description'!AG:AG,\"Yes\")","v":0}]
["Related Towns/Cities",{"$f":"COUNTA('2. Description'!M5:M19998)","v":0},null,null,null,"No",{"$f":"COUNTIF('2. Description'!AG:AG,\"No\")","v":0}]
["Related Religions",{"$f":"COUNTA('2. Description'!N5:N19998)","v":0},null,null,null,"Don’t Know",{"$f":"COUNTIF('2. Description'!AG:AG,\"Don't Know\")","v":0}]
["Related Subjects\n",{"$f":"COUNTA('2. Description'!O5:O19998)","v":0}]
["Other Related Subjects\n",{"$f":"COUNTA('2. Description'!P5:P19998)","v":0}]
["Dates of Original Material (Gregorian Calendar)",{"$f":"COUNTA('2. Description'!Q5:Q19998)","v":0},null,null,null,"Contains Sensitive Data"]
["Alternative Calendar",{"$f":"COUNTA('2. Description'!R5:R19998)","v":0},null,null,null,"Yes",{"$f":"COUNTIF('2. Description'!AL:AL,\"Yes\")","v":0}]
["Alternative Calendar Dates",{"$f":"COUNTA('2. Description'!S5:S19998)","v":0},null,null,null,"No",{"$f":"COUNTIF('2. Description'!AL:AL,\"No\")","v":0}]
["System of Arrangement",{"$f":"COUNTA('2. Description'!T5:T19998)","v":0}]
["Custodial History",{"$f":"COUNTA('2. Description'!U5:U19998)","v":0}]
["Author(s) / Creators of the Original Material",{"$f":"COUNTA('2. Description'!V5:V19998)","v":0},null,null,null,"Writing Systems"]
["Scribe(s) of the Original Material",{"$f":"COUNTA('2. Description'!W5:W19998)","v":0},null,null,null,"Left-to-Right",{"$f":"COUNTIF('2. Description'!AC:AC,\"Left-to-Right\")","v":0}]
["Publisher(s) of the Original Material",{"$f":"COUNTA('2. Description'!X5:X19998)","v":0},null,null,null,"Right-to-Left",{"$f":"COUNTIF('2. Description'!AC:AC,\"Right-to-Left\")","v":0}]
["Editor(s) of the Original Material",{"$f":"COUNTA('2. Description'!Y5:Y19998)","v":0},null,null,null,"Both",{"$f":"COUNTIF('2. Description'!AC:AC,\"Both\")","v":0}]
["Volume and Issue Number",{"$f":"COUNTA('2. Description'!Z5:Z19998)","v":0}]
["Languages of Material",{"$f":"COUNTA('2. Description'!AA5:AA19998)","v":0}]
["Scripts of Material\n",{"$f":"COUNTA('2. Description'!AB5:AB19998)","v":0},null,null,null,"Format of Digital Files"]
["Writing System \n",{"$f":"COUNTA('2. Description'!AC5:AC19998)","v":0},null,null,null,"MP4",{"$f":"COUNTIF('2. Description'!AQ:AQ,\"MP4\")","v":0}]
["Access Conditions",{"$f":"COUNTA('2. Description'!AD5:AD19998)","v":0},null,null,null,"TIFF",{"$f":"COUNTIF('2. Description'!AQ:AQ,\"TIFF\")","v":0}]
["Restriction End Date",{"$f":"COUNTA('2. Description'!AE5:AE19998)","v":0},null,null,null,"WAV",{"$f":"COUNTIF('2. Description'!AC:AC,\"Both\")","v":0}]
["Reason for Restriction",{"$f":"COUNTA('2. Description'!AF5:AF19998)","v":0}]
["Is the Material Still in Copyright?",{"$f":"COUNTA('2. Description'!AG5:AG19998)","v":0}]
["Copyright Holder's Name",{"$f":"COUNTA('2. Description'!AH5:AH19998)","v":0}]
["Have you obtained written consent for the Material to be included on the EAP website?",{"$f":"COUNTA('2. Description'!AI5:AI19998)","v":0}]
["Have You Sent All Written Permissions to the EAP Office?",{"$f":"COUNTA('2. Description'!AJ5:AJ19998)","v":0}]
["Attribution",{"$f":"COUNTA('2. Description'!AK5:AK19998)","v":0}]
["Does the Material Contain Sensitive Personal Data About Living People?",{"$f":"COUNTA('2. Description'!AL5:AL19998)","v":0}]
["The Nature of Sensitive Personal Data",{"$f":"COUNTA('2. Description'!AM5:AM19998)","v":0}]
["Digital Folder Name",{"$f":"COUNTA('2. Description'!AN5:AN19998)","v":0}]
["Digital File Name",{"$f":"COUNTA('2. Description'!AO5:AO19998)","v":0}]
["Creation Year of Digital Files",{"$f":"COUNTA('2. Description'!AP5:AP19998)","v":0}]
["Format of Digital Files",{"$f":"COUNTA('2. Description'!AQ5:AQ19998)","v":0}]
["Number of Digital Files",{"$f":"COUNTA('2. Description'!AR5:AR19998)","v":0}]
["Location of Digital Copies",{"$f":"COUNTA('2. Description'!AS5:AS19998)","v":0}]
["Location of Original Material ",{"$f":"COUNTA('2. Description'!AT5:AT19998)","v":0}]